Cogmind - Beta 15 @@@ ROGUE MODE // 2025.07.24 @ 13:41:01 Player: FenRhew Result: Destroyed by Y-54 Guardian with Gatling Laser Performance ------------- Evolutions (4) 2000 Regions Visited (6) 1200 Robots Destroyed (53) 265 Value Destroyed (2022) 2022 Prototype IDs (19) 380 Alien Tech Used (0) 0 Bonus (800) 800 TOTAL SCORE: 6667 Bonus ------- Registered with UFD 300 Met Optimus in HQ 500 Cogmind --------- Core Integrity 0/850 Matter 300/300 Energy 99/100 System Corruption 7% Temperature Cool (21) Movement Core (50) Location -6/Lower Caves Parts ------- > --- POWER (1) -------- (None) > --- PROPULSION (3) --- (None) > --- UTILITY (9) ------ Improved Cooling System Enhanced Optical Array Improved Terrain Scan Processor Improved System Shield A0-MCA's Component Scanner > --- WEAPON (2) ------- (None) > --- INVENTORY (5) ---- Machine Analyzer Enhanced Scrap Shield Proton Cannon Great Axe Peak State ------------ > --- POWER ------------ Light Fission Core > --- PROPULSION ------- Improved Carbon-fiber Leg Flexi-carbon Leg Armored Leg > --- UTILITY ---------- Scrap Suit Advanced Heat Sink Large Storage Unit Enhanced Optical Array Improved Targeting Computer Utility Shielding Improved Hacking Suite A0-MCA's Component Scanner > --- WEAPON ----------- Plasma Rifle Plasma Rifle > --- INVENTORY -------- Light Nuclear Core Scrap Suit Improved Cooling System Improved Signal Interpreter Proton Cannon Barrage Gun Gauss Rifle Improved Light Cannon Grenade Launcher Improved Concussive RPG Improved Datajack [Rating: 69] Favorites ----------- Power Fission Core Engine Ion Engine Power Core Fission Core Propulsion Light Treads Treads Light Treads Leg Improved Titanium Leg Wheel Compact Wheel Hover Unit Aerolev Unit Utility Large Storage Unit Device Scrap Suit Storage Large Storage Unit Processor A0-MCA's Component Scanner Hackware Improved Hacking Suite Protection Light Armor Plating Weapon Light EM Pulse Cannon Energy Gun Plasma Rifle Energy Cannon Light EM Pulse Cannon Ballistic Gun Barrage Gun Ballistic Cannon Improved Light Cannon Launcher Grenade Launcher Build | -11 -10 -10 -9 -6 -6 -6 ------- Run | Yrd Mat Sub Scr Fac Low Low Slots Evolved 8 | . . . . 8 . . Power . | . . . . . . . Propulsion 1 | . . . . 1 . . Utility 7 | . . . . 7 . . Weapon . | . . . . . . . Parts Attached 69 | 7 7 6 6 24 11 8 Power 9 | 1 . 1 1 1 5 . Engine 5 | 1 . 1 . . 3 . Core 4 | . . . 1 1 2 . Reactor . | . . . . . . . Propulsion 17 | 2 . 4 3 6 2 . Treads 4 | 2 . 1 1 . . . Leg 10 | . . 3 1 4 2 . Wheel 2 | . . . 1 1 . . Hover 1 | . . . . 1 . . Flight . | . . . . . . . Utility 24 | 2 3 1 . 12 1 5 Device 10 | 1 1 . . 6 . 2 Storage 3 | 1 2 . . . . . Processor 5 | . . . . 3 1 1 Hackware 2 | . . . . 1 . 1 Protection 4 | . . 1 . 2 . 1 Artifact . | . . . . . . . Weapon 19 | 2 4 . 2 5 3 3 Energy Gun 2 | . . . . 2 . . Energy Cannon 6 | . 4 . . 1 . 1 Ballistic Gun 7 | 2 . . 2 . 3 . Ballistic Cannon 2 | . . . . 2 . . Launcher 2 | . . . . . . 2 Special Weapon . | . . . . . . . Impact Weapon . | . . . . . . . Slashing Weapon . | . . . . . . . Piercing Weapon . | . . . . . . . Special Melee Weapon . | . . . . . . . Unidentified Prototypes . | . . . . . . . Parts Lost 36 | . . 3 . 12 13 8 Power 8 | . . 1 . 2 4 1 Propulsion 6 | . . 1 . 1 3 1 Utility 13 | . . 1 . 7 1 4 Weapon 9 | . . . . 2 5 2 Highest Loss Streak 7 | . . 2 . 4 5 7 To Critical Strikes 1 | . . . . . 1 . Average Backups 11 | 3 10 14 13 11 10 6 Power . | . 1 . . . . . Propulsion 1 | 2 3 3 2 1 . . Utility 4 | . 2 4 6 4 3 3 Weapon 3 | . 2 4 3 3 3 1 Tool/Special . | . . . . . . . Unused Backups 22 | . 3 2 9 4 . 4 Power 1 | . 1 . . . . . Propulsion 4 | . 1 1 1 1 . . Utility 6 | . . . 3 1 . 2 Weapon 8 | . 1 1 4 1 . 1 Tool/Special 3 | . . . 1 1 . 1 Average Slot Usage (%) 92 | . 99 99 100 90 79 74 Engine 5 | . 14 14 1 . 5 5 Core 4 | . . . 12 5 . . Treads 10 | . 28 27 12 . . . Leg 7 | . . . 7 10 15 5 Wheel 3 | . . . 7 6 . . Device 8 | . 14 10 . 13 9 11 Storage 10 | . 14 14 14 6 6 5 Processor 9 | . . . . 18 23 25 Hackware 2 | . . . . 5 6 5 Protection 5 | . . 3 14 6 . . Energy Gun 1 | . . . . 2 1 5 Energy Cannon 7 | . 17 28 2 . 1 . Ballistic Gun 10 | . 10 . 25 2 8 . Ballistic Cannon 1 | . . . . 7 . . Peak Build Rating 69 | 7 10 12 25 69 69 62 Average Rating 34 | 4 8 11 21 60 58 50 On Entrance 23 | . 7 10 12 25 61 48 Naked Turns . | . . . . . . . Heaviest Build 61 | 14 34 36 41 51 44 61 Greatest Support 58 | 40 40 40 40 54 58 15 Greatest Overweight (x) 4 | . . 1 2 3 2 4 Average Overweight (x) . | . . . 1 1 . 1 Largest Inventory Capacity 15 | 8 15 15 15 15 15 15 Average Capacity 14 | 6 11 15 15 15 15 13 Most Carried 15 | 7 15 15 15 15 15 11 Average Carried 12 | 3 10 14 14 12 11 7 Final Capacity 15 | 8 15 15 15 15 15 5 Final Carried 15 | 7 14 14 15 9 9 5 Class Distribution -------------------- 93% | Mutant 6% | Scavenger-Mutant Dominant Class ---------------- Mutant | -10/Materials Mutant | -10/Subcaves Mutant | -9/Scraptown Mutant | -6/Factory Mutant | -6/Lower Caves Mutant | -6/Lower Caves Resources | -11 -10 -10 -9 -6 -6 -6 ----------- Run | Yrd Mat Sub Scr Fac Low Low Matter Collected 1885 | 273 195 131 55 675 409 147 Remotely . | . . . . . . . Salvage Created 2132 | 21 652 311 . 643 505 . Parts 113 | 5 37 21 . 32 18 . Haulers Intercepted 1 | . 1 . . . . . Recyclers Shooed 1 | . 1 . . . . . Parts Field Recycled . | . . . . . . . Retrieved Matter . | . . . . . . . Parts Self-Destructed 25 | . . 6 . . 14 5 Prevented 1 | . . . . . 1 . Kills | -11 -10 -10 -9 -6 -6 -6 ------- Run | Yrd Mat Sub Scr Fac Low Low Combat Hostiles Destroyed 48 | . 17 6 . 16 9 . Guns 22 | . 8 . . 7 7 . Cannons 21 | . 9 4 . 7 1 . Classes Destroyed 12 | 1 4 1 . 6 . . Worker 1 | . . . . 1 . . Builder 1 | . . . . 1 . . Tunneler 1 | 1 . . . . . . Hauler 1 | . 1 . . . . . Operator 1 | . 1 . . . . . Swarmer 12 | . 6 . . 4 2 . Grunt 20 | . 11 . . 3 6 . Duelist 1 | . . . . 1 . . Sentry 4 | . . . . 3 1 . Hunter 2 | . . . . 2 . . Programmer 3 | . . . . 3 . . Subdweller 6 | . . 6 . . . . Best Kill Streak 4 | 1 4 1 . 4 2 . Combat Bots Only 4 | . 4 1 . 3 2 . Max Kills in Single Turn 1 | 1 1 1 . 1 1 . Gunslinging . | . . . . . . . Exploded . | . . . . . . . Melee . | . . . . . . . Uniques/NPCs Destroyed . | . . . . . . . Combat | -11 -10 -10 -9 -6 -6 -6 -------- Run | Yrd Mat Sub Scr Fac Low Low Hostile Shots Fired 584 | . 78 24 . 238 179 65 Missed 175 | . 23 7 . 71 51 23 Hits 409 | . 55 17 . 167 128 42 Melee 3 | . . . . 3 . . Projectile 406 | . 55 17 . 164 128 42 Critical Strikes 14 | . . 1 . 5 3 5 Actively Blocked 1 | . . . . 1 . . Damage Taken 5572 | . 631 426 . 2105 1782 628 Core 1036 | . 104 81 . 290 307 254 Absorbed by Shields . | . . . . . . . Redirected to Shielding 55 | . . . . 55 . . Regen/Repaired (Parts) 80 | . . . . 64 16 . Core Remaining (%) 63 | 100 . . 26 . . . Volleys Fired 189 | 4 47 18 . 75 41 4 Largest 2 | 2 2 2 . 2 2 2 Hottest 150 | 40 112 112 . 150 150 150 Shots Fired 339 | 8 93 37 . 127 68 6 Gun 198 | 8 66 . . 61 60 3 Cannon 140 | . 27 37 . 66 8 2 Launcher 1 | . . . . . . 1 Special . | . . . . . . . Kinetic 205 | 8 66 . . 78 53 . Thermal 57 | . . . . 47 7 3 Explosive 1 | . . . . . . 1 Electromagnetic 76 | . 27 37 . 2 8 2 Robot Hit Streak 20 | 3 17 11 . 17 20 13 Robot Miss Streak 5 | 1 5 2 . 3 3 1 Penetration Max . | . . . . . . . Secondary Targets . | . . . . . . . Shots Hit Robots 226 | 5 54 28 . 83 52 4 Core Hits 105 | 2 29 10 . 40 23 1 Critical Kills 2 | . . . . . 2 . Critical Parts Destroyed . | . . . . . . . Critical Strikes 8 | . . . . 5 3 . Burn 3 | . . . . 2 1 . Destroy 2 | . . . . . 2 . Blast 3 | . . . . 3 . . Melee Attacks . | . . . . . . . Impact . | . . . . . . . Slashing . | . . . . . . . Piercing . | . . . . . . . Sneak Attacks . | . . . . . . . Combat Hostiles . | . . . . . . . Follow-up Attacks . | . . . . . . . Damage Inflicted 4624 | 58 845 479 . 2069 997 176 Guns 2410 | 58 394 . . 1073 840 45 Cannons 1868 | . 451 479 . 744 157 37 Explosions 346 | . . . . 252 . 94 Melee . | . . . . . . . Ramming . | . . . . . . . Kinetic 2056 | 58 394 . . 898 706 . Thermal 1299 | . . . . 1046 134 119 Explosive 20 | . . . . . . 20 Electromagnetic 1232 | . 451 479 . 125 157 20 Impact 17 | . . . . . . 17 Slashing . | . . . . . . . Piercing . | . . . . . . . Highest Corruption 7 | . 1 1 1 7 7 7 Average Corruption 4 | . 1 1 1 4 7 7 Corruption Purged . | . . . . . . . Corruption Blocked . | . . . . . . . Effects 106 | . 1 17 . 28 39 21 Message Errors 23 | . . 3 . 7 9 4 Matter Fused 37 | . . 8 . 12 10 7 Heat Flow Errors 13 | . . 2 . 2 7 2 Energy Discharges 15 | . 1 1 . 3 5 5 Parts Rejected 2 | . . . . . 2 . Data Loss (minor) 5 | . . 1 . . 3 1 Data Loss (major) 4 | . . . . 1 2 1 Misfires 4 | . . 1 . 1 1 1 Alerts 1 | . . 1 . . . . Weapon Failures 2 | . . . . 2 . . Overload Shots . | . . . . . . . Overflow Damage 76 | . 10 . . 59 7 . Projectiles 17 | . 10 . . . 7 . Explosions 59 | . . . . 59 . . Melee . | . . . . . . . Knockbacks 9 | . . . . 9 . . Impact . | . . . . . . . Kinetic 8 | . . . . 8 . . Secondary 1 | . . . . 1 . . Self-Inflicted Damage . | . . . . . . . Shots . | . . . . . . . Rammed . | . . . . . . . Targets Rammed . | . . . . . . . Kicked . | . . . . . . . Crushed . | . . . . . . . Highest Temperature 524 | . 180 89 . 444 168 524 Average Temperature 95 | . 51 25 . 136 61 169 Received Heat Transfer 2093 | . 273 18 . 450 651 701 Effects 6 | . . . . 5 . 1 Shutdowns 2 | . . . . 1 . 1 Energy Bleed 1 | . . . . 1 . . Interference 2 | . . . . 2 . . Damage (minor) 1 | . . . . 1 . . Siege Activations . | . . . . . . . Martial Activations . | . . . . . . . Shielding Activations . | . . . . . . . Robots Disrupted . | . . . . . . . Combat Hostiles . | . . . . . . . Robots Corrupted 2 | . . 2 . . . . Combat Hostiles 2 | . . 2 . . . . Parts Fried 4 | . 1 3 . . . . Impact Corruptions . | . . . . . . . Robots Melted 3 | . . . . 2 1 . Combat Hostiles 3 | . . . . 2 1 . Parts Melted 9 | . . . . 7 2 . Heat Transferred 2800 | . . . . 2250 400 150 Parts Sabotaged . | . . . . . . . Parts Stolen . | . . . . . . . Parts Stripped . | . . . . . . . Power Chain Reactions 2 | . . . . 1 . 1 Alert | -11 -10 -10 -9 -6 -6 -6 ------- Run | Yrd Mat Sub Scr Fac Low Low Maximum Alert Level 1 | . 1 . . . . . Low Security (%) 89 | 100 69 . . 100 . . Level 1 10 | . 30 . . . . . Level 2 . | . . . . . . . Level 3 . | . . . . . . . Level 4 . | . . . . . . . Level 5 . | . . . . . . . High Security . | . . . . . . . Max Security . | . . . . . . . Peak Influence 266 | 5 266 . . 167 . . Initial . | . . . . . . . Average 81 | . 130 . . 58 . . Influence Increases 1419 | 5 508 . . 616 275 15 Destroy 0b10 Robot/C 840 | . 340 . . 320 180 . Destroy 0b10 Robot/NC 25 | 5 10 . . 10 . . Destroy Leader 192 | . 72 . . 100 20 . Successful Hack 37 | . 11 . . 26 . . Disable Machine 120 | . 15 . . 105 . . Destroy Structure 25 | . . . . 25 . . Lose Combat Pursuer 180 | . 60 . . 30 75 15 Influence Decreases 1404 | 5 306 202 . 477 414 . Entered New Map 150 | . . 98 . . 52 . Time Decay 1056 | 5 306 104 . 367 274 . Lost Part 198 | . . . . 110 88 . Squads Dispatched 13 | . 5 . . 8 . . Investigation 8 | . 4 . . 4 . . Extermination 3 | . . . . 3 . . Reinforcement 2 | . 1 . . 1 . . Assault . | . . . . . . . Garrison . | . . . . . . . Intercept . | . . . . . . . Searches Triggered . | . . . . . . . Construction Impeded . | . . . . . . . Haulers Reinforced . | . . . . . . . Active Scanning Responses . | . . . . . . . Cargo Convoy Interrupts . | . . . . . . . Stealth | -11 -10 -10 -9 -6 -6 -6 --------- Run | Yrd Mat Sub Scr Fac Low Low Distress Signals 1 | . 1 . . . . . Communications Jammed . | . . . . . . . Distress Signals . | . . . . . . . Times Spotted 84 | . 33 8 . 25 14 4 Peak Tracking Total 6 | . 6 2 . 4 4 3 Tactical Retreats 10 | . 3 1 . 2 3 1 Traps | -11 -10 -10 -9 -6 -6 -6 ------- Run | Yrd Mat Sub Scr Fac Low Low Traps Triggered 7 | . 4 2 . 1 . . Indirectly . | . . . . . . . Trap Hack Attempts . | . . . . . . . Triggered . | . . . . . . . Disarmed . | . . . . . . . Reprogrammed . | . . . . . . . Reused . | . . . . . . . Traps Extracted . | . . . . . . . Installed . | . . . . . . . Triggered . | . . . . . . . Machines | -11 -10 -10 -9 -6 -6 -6 ---------- Run | Yrd Mat Sub Scr Fac Low Low Machines Disabled 8 | . 1 . . 7 . . Max in Single Turn 2 | . 1 . . 2 . . Machines Repaired . | . . . . . . . Machines Dismantled . | . . . . . . . Machines Sabotaged . | . . . . . . . Overloaded Fab Kills . | . . . . . . . Hacking | -11 -10 -10 -9 -6 -6 -6 --------- Run | Yrd Mat Sub Scr Fac Low Low Machines Accessed 21 | . 4 1 8 8 . . Terminals 6 | . 4 . . 2 . . Fabricators 2 | . . . . 2 . . Repair Stations . | . . . . . . . Recycling Units 4 | . . . . 4 . . Scanalyzers . | . . . . . . . Garrison Access . | . . . . . . . Total Hacks 76 | . 9 2 46 19 . . Successful 58 | . 2 2 46 8 . . Failed 18 | . 7 . . 11 . . Catastrophic 2 | . 1 . . 1 . . Database Lockouts . | . . . . . . . Manual 8 | . 2 . . 6 . . Terminals 14 | . 9 . . 5 . . Fabricators 4 | . . . . 4 . . Repair Stations . | . . . . . . . Recycling Units 10 | . . . . 10 . . Scanalyzers . | . . . . . . . Garrison Access . | . . . . . . . Terminal Hacks 52 | . 2 2 46 2 . . Record 46 | . . 1 45 . . . Robot Analysis 1 | . 1 . . . . . Level Access Points 1 | . . . . 1 . . Hauler Manifests 1 | . 1 . . . . . Zone Layout 1 | . . . . 1 . . Proto ID Catalog 2 | . . 1 1 . . . Fabricator Hacks 1 | . . . . 1 . . Network Status 1 | . . . . 1 . . Repair Station Hacks . | . . . . . . . Recycling Unit Hacks 2 | . . . . 2 . . Report Inventory 2 | . . . . 2 . . Scanalyzer . | . . . . . . . Garrison Access Hacks . | . . . . . . . Unauthorized Hacks 3 | . . . . 3 . . Terminals . | . . . . . . . Fabricators . | . . . . . . . Repair Stations . | . . . . . . . Recycling Units 3 | . . . . 3 . . Fedlink 3 | . . . . 3 . . Scanalyzers . | . . . . . . . Garrison Access . | . . . . . . . Data Cores Recovered . | . . . . . . . Used . | . . . . . . . Hacking Detections 11 | . 4 . . 7 . . Full Trace Events 2 | . 1 . . 1 . . Feedback Events 1 | . 1 . . . . . Corruption 1 | . 1 . . . . . Feedback Blocked . | . . . . . . . Robot Schematics Acquired . | . . . . . . . Robots Built . | . . . . . . . Authchips . | . . . . . . . Time . | . . . . . . . Total Robot Build Rating . | . . . . . . . Part Schematics Acquired . | . . . . . . . Parts Built . | . . . . . . . Authchips . | . . . . . . . Time . | . . . . . . . Total Part Build Rating . | . . . . . . . Parts Repaired . | . . . . . . . Time . | . . . . . . . Parts Recycled . | . . . . . . . Recycled Matter . | . . . . . . . Retrieved Matter . | . . . . . . . Retrieved Components . | . . . . . . . Parts Scanalyzed . | . . . . . . . Part Schematics Acquired . | . . . . . . . Parts Damaged . | . . . . . . . Bothacking | -11 -10 -10 -9 -6 -6 -6 ------------ Run | Yrd Mat Sub Scr Fac Low Low Used RIF Installer . | . . . . . . . Robots Hacked . | . . . . . . . Non-combat . | . . . . . . . Combat . | . . . . . . . Robot Hacks Applied . | . . . . . . . Relay Couplers Released . | . . . . . . . Fabnet Peak Effective % . | . . . . . . . Robots Rewired . | . . . . . . . Allies Hacked . | . . . . . . . Hacks Repelled . | . . . . . . . Allies | -11 -10 -10 -9 -6 -6 -6 -------- Run | Yrd Mat Sub Scr Fac Low Low Total Allies . | . . . . . . . Largest Group . | . . . . . . . Highest-Rated Group . | . . . . . . . Highest-Rated Ally . | . . . . . . . Total Orders . | . . . . . . . Ally Attacks . | . . . . . . . Total Damage . | . . . . . . . Kills . | . . . . . . . Allies Corrupted . | . . . . . . . Allies Melted . | . . . . . . . Intel | -11 -10 -10 -9 -6 -6 -6 ------- Run | Yrd Mat Sub Scr Fac Low Low Active Infowar (turns) 5339 | 17 913 880 . 1509 1227 793 Optics 3529 | . . . . 1509 1227 793 Sensors 1540 | . 563 880 . 97 . . Terrain 1184 | . . . . 1184 . . Seismic 367 | 17 350 . . . . . Cloaking 244 | . . . . . . 244 Robot Analysis Total 1 | . 1 . . . . . Derelict Logs Recovered 3 | . . . 1 . 1 1 Drone Launches . | . . . . . . . Drone Recoveries . | . . . . . . . Exploration | -11 -10 -10 -9 -6 -6 -6 ------------- Run | Yrd Mat Sub Scr Fac Low Low Turns Passed 7911 | 110 913 1152 2162 1554 1227 793 Spaces Moved 4583 | 49 439 652 1508 814 691 430 Core 177 | 1 . . . . . 176 Treads 1698 | 48 439 645 566 . . . Legs 1184 | . . 7 . 232 691 254 Wheels 1524 | . . . 942 582 . . Hover . | . . . . . . . Flight . | . . . . . . . Fastest Speed 50 | 50 160 160 130 105 120 50 Average Speed 148 | 157 160 160 141 124 154 175 Slowest Speed 400 | 160 160 190 250 190 260 400 Overloaded Moves . | . . . . . . . Propulsion Burnouts . | . . . . . . . Robots Hopped . | . . . . . . . Potential Cave-ins . | . . . . . . . Cave-ins Triggered . | . . . . . . . Exploration Rate (%) 54 | 5 73 43 92 21 82 66 Regions Visited 6 Branch Regions 4 Pre-discovered Areas 2 | . . . 1 1 . . Known Exits Taken 1 | . . . . . 1 . Unknown Exits Taken 5 | 1 1 1 1 1 . . Scrap Searched 16 | . . 5 7 . 2 2 Spaces Dug . | . . . . . . . Terrain Destroyed 52 | . . . . 33 3 16 Melee . | . . . . . . . Projectile 3 | . . . . . 3 . AOE 49 | . . . . 33 . 16 Terrain Rammed . | . . . . . . . Walls Destroyed . | . . . . . . . Machines Disabled . | . . . . . . . Actions | -11 -10 -10 -9 -6 -6 -6 --------- Run | Yrd Mat Sub Scr Fac Low Low Total 5404 | 72 567 728 1546 1234 789 468 Wait 415 | 5 54 33 . 286 30 7 Move 4577 | 48 438 651 1507 813 690 430 Hop . | . . . . . . . Pick Up 77 | 8 12 8 16 19 9 5 Fast Attach 18 | 6 2 2 . 3 4 1 Attach 50 | 1 3 5 3 21 8 9 Detach 7 | . . 2 . 2 . 3 Swap 20 | . 2 1 4 5 5 3 Drop 51 | . 9 8 16 10 2 6 Fire 189 | 4 47 18 . 75 41 4 Melee . | . . . . . . . Ram . | . . . . . . . Kick . | . . . . . . . Crush . | . . . . . . . Escape Stasis . | . . . . . . . Rewire . | . . . . . . . Trap . | . . . . . . . Miscellaneous . | . . . . . . . Route ------- -11/Scrapyard -10/Materials (discovered 6 exits: [*Mat x3] / [*Min x2] / *Sub) -10/Subcaves -9/Scraptown (discovered 2 exits: *Fac x2) -6/Factory (discovered 6 exits: Fac x4 / [*Low x2]) -6/Lower Caves -6/Lower Caves (discovered 1 exit: *Fac) History --------- Turn | Location | Event 52 | -11/Scrapyard | Discovered new exit (range 16) 111 | -11/Scrapyard | Entered Materials 112 | -10/Materials | Met a group of wandering Federalists 144 | -10/Materials | Discovered new exit (range 5) 242 | -10/Materials | Discovered new exit (range 12) 284 | -10/Materials | Discovered new exit (range 13) 305 | -10/Materials | Build established: Mutant 588 | -10/Materials | Discovered new exit (range 7) 728 | -10/Materials | Discovered new exit (range 3) 827 | -10/Materials | Discovered new exit (range 13) 1024 | -10/Materials | Entered Subcaves 1025 | -10/Subcaves | Continued accompanying wandering Federalists (5) 1068 | -10/Subcaves | Core integrity fell below 50% 1277 | -10/Subcaves | Wandering Federalist uncovered a shortcut to Scraptown 1465 | -10/Subcaves | Visited 4L-MR0's lab 1839 | -10/Subcaves | A swath of the cavern ceiling suddenly collapsed 2176 | -10/Subcaves | Entered Scraptown 2180 | -9/Scraptown | System corruption cleaned by C-Scrubber 2538 | -9/Scraptown | Scanned Subdweller tech in exchange for log data 2542 | -9/Scraptown | Learned location of Testing (-2) 2560 | -9/Scraptown | Discovered new exit (range 11) 2670 | -9/Scraptown | Visited Bundlers 2788 | -9/Scraptown | Heard Great Nut preacher, LISTEN AND RECITE! 2793 | -9/Scraptown | Visited Spacefarers 2873 | -9/Scraptown | Visited Assassins FH 3236 | -9/Scraptown | Visited TADAMA 3280 | -9/Scraptown | Visited Cyclists 3321 | -9/Scraptown | Visited CPS Storage 3331 | -9/Scraptown | Visited Cave Peace 3382 | -9/Scraptown | Visited UFD Registry 3382 | -9/Scraptown | Registered with UFD as "Metaform" 3400 | -9/Scraptown | Entered Cyclist Reading Room 3453 | -9/Scraptown | Visited Science Guys 3518 | -9/Scraptown | Visited Scrap Suit Storage 3564 | -9/Scraptown | Delivered Scrap Shield to a Scientist 3734 | -9/Scraptown | Found Scrap Suit 3736 | -9/Scraptown | Found Scrap Suit 3759 | -9/Scraptown | Visited Science Testing Area 3781 | -9/Scraptown | Visited Supply Room 3834 | -9/Scraptown | Visited Scrapoid Pod Storage 3857 | -9/Scraptown | Visited A0-MCA Data Center 3865 | -9/Scraptown | Given a B+ rating by A0-MCA 3871 | -9/Scraptown | Found A0-MCA's Component Scanner 3898 | -9/Scraptown | Visited Cartography Club 4054 | -9/Scraptown | Visited Scrapoid Research Area 4152 | -9/Scraptown | Discovered new exit (range 5) 4254 | -9/Scraptown | Met Optimus 4254 | -9/Scraptown | Accepted into 0bPrime 4338 | -9/Scraptown | Entered Factory 4338 | -6/Factory | Evolved 8 slots: Propulsion x1, Utility x7 4761 | -6/Factory | Identified exit to Factory 4778 | -6/Factory | Loaded intel: 8 recycling unit locations 5281 | -6/Factory | Discovered new exit (range 18) 5305 | -6/Factory | Learned location of Protoforge (-2) 5623 | -6/Factory | Lost 3 parts (2u1w) 5779 | -6/Factory | Lost 4 parts (1p1n2u) 5860 | -6/Factory | Discovered new exit (range 11) 5892 | -6/Factory | Entered Lower Caves 5894 | -6/Lower Caves | UFD Scientist delivered a prototype 5897 | -6/Lower Caves | Found Enh. Scrap Shield 6241 | -6/Lower Caves | Build established: Scavenger-Mutant 6429 | -6/Lower Caves | Spotted B-75 Beast 6534 | -6/Lower Caves | Core integrity fell below 50% 6594 | -6/Lower Caves | Lost 5 parts (2n3w) 6595 | -6/Lower Caves | Learned Factory trap positions 6732 | -6/Lower Caves | Build established: Mutant 6815 | -6/Lower Caves | Discovered new exit (range 17) 6827 | -6/Lower Caves | Attracted the attention of an 0b10 checkpoint 6887 | -6/Lower Caves | Lost 5 parts (2p1n2w) 6898 | -6/Lower Caves | Identified exit to Lower Caves 7119 | -6/Lower Caves | Entered another Lower Caves area 7349 | -6/Lower Caves | Discovered exit to Factory (range 17) 7542 | -6/Lower Caves | Learned Factory emergency access door positions 7728 | -6/Lower Caves | Spotted B-75 Beast 7818 | -6/Lower Caves | Core integrity fell below 20% 7851 | -6/Lower Caves | Lost 7 parts (1p1n3u2w) 7911 | -6/Lower Caves | Attracted the attention of an 0b10 checkpoint 7912 | -6/Lower Caves | Destroyed by Y-54 Guardian with Gatling Laser Last Messages --------------- 07820_ Cloaking Device destroyed. 07821_ System corrupted: Energy discharge (-9). 07821_ Acquired 3 matter. 07840_ Searching scrap... 07840_ Found Jamming Amplifier. 07840_ Found Great Axe. 07840_ Found Machine Analyzer. 07840_ Found 68 Matter. 07841_ Acquired 32 matter. 07843_ System corrupted: Matter fused (-5). 07845_ Acquired Machine Analyzer. 07847_ Acquired Great Axe. 07884_ Acquired 10 matter. 07885_ Acquired 15 matter. 07888_ Imp. Signal Interpreter destroyed. 07888_ Critical hit (Blast). 07903_ Component scanned: Imp. Light Armor Plating [Y-54 Guardian]. 07911_ Y-54 Guardian: "INTERCEPTING UNREGISTERED DERELICT." Map ----- +----------------------------------------------------+ | ???????????????## ##???# ## %######?????# # | | ????????????????####????# ## ##????#### | | ??????????????????????### #### ##?????## | | ???????????????????#### ### % ####### | | ??????????????????## ## ## | | ????????????????### ##% #### | | ????????????????# ### ## #??# | | ????????????????# ##?## #??## ### | | ????????????????## ##???####% #???###### ### | | ?????????????????# ##???????# #????#### #?## | | ?????????????????####???????## #???## #??## | | ?????????????????###????##### ##### #???# | | ???????????#?????# ##### % ##??## | | ???????????# ????# % #???? | | ???????????# #### ###### % #???? | | ??????????### ##??#### % #???? | | ??????????# ##????# #???? | | ????????? # ##???# %###???? | | ???????? g ##??# %#????? | | ???????? Y ##?# %????? | | ???????? #?# #?????# | | ???????? g ######? #?????? | | ??????????# ####?????? #?????? | | ????????????## #???????? ??????? | | ????????????# #???????? ??????? | | ???????????# ####@ ##???????## ??????? | | ??????????# ???## ##?????????## ??????? | | ??????????# ?????## #??????????? ??????? | | ?????????? ? ???????###??????????? ??????? | | ???????????????? ?????????????????????? #??????? | | ???????????????????????????????????????? ???????? | | ???????????????????????????????????????? ???????? | | ????????????????????????????????????????##???????? | | ?????????????????????????????????????????????????? | | ?????????????????????????????????????????????????? | | ?????????????????????????????????????????????????? | | ?????????????????????????????????????????????????? | | ?????????????????????????????????????????????????? | | ?????????????????????????????????????????????????? | | ?????????????????????????????????????????????????? | | ?????????????????????????????????????????????????? | | ?????????????????????????????????????????????????? | | ?????????????????????????????????????????????????? | | ?????????????????????????????????????????????????? | | ?????????????????????????????????????????????????? | | ?????????????????????????????????????????????????? | | ?????????????????????????????????????????????????? | | ?????????????????????????????????????????????????? | | ?????????????????????????????????????????????????? | | ?????????????????????????????????????????????????? | +----------------------------------------------------+ Best States ------------- Heat Dissipation 64 Energy Generation 18 Energy Capacity 310 Matter Stores 300 Matter Capacity 300 Sight Range 22 Robot Scan Range 15 Terrain Scan Range 20 Terrain Scan Density 110 Cloak Strength 2 Armor Coverage 800 Utility Shielding 33 Evasion (%) 55 Targeting Accuracy 6 Recoil Reduction 2 Offensive Hacking 12 Defensive Hacking 12 Item Schematics ----------------- None Robot Schematics ------------------ None Fabricated ------------ Nothing Repaired ---------- Nothing Alien Tech Used ----------------- None Achievements -------------- None Challenges ------------ None Game ------ Seed CentriumBackupMaul Manual? 0 Play Time 01:17:33 Cumulative 65.0 hours Start 2025.07.24 @ 11:58:03 End 2025.07.24 @ 13:41:01 Sessions 3 Manual Loads 0 Difficulty Rogue Special Mode None Game No. 48 Rogue 48 Adventurer 0 Explorer 0 Win Type - Total 0 Types 0/0/0/0/0/0/0/0/0/0 Lore% 47 Gallery% 45 Achievement% 38 Wizard Run 0 Options --------- Layout 1 ASCII 0 Keyboard 0 Movement Numpad Keybinds 0 Fullscreen 1 Font 24/Smallcaps Map View 50x35 Zoom Use 0% Tactical HUD 1 Map Filters NONE Filters NONE Steam 1 RUN: f845d1e1-c39d-4601-824f-94fa10cadf43